bitfinex/quotes_BTCUSD_20240717
["timestamp","ask_amount","ask_price","bid_price","bid_amount"]
[1721237388391,0.0145529,64312.0,64311.0,2.06852774]
[1721237388596,0.0145529,64312.0,64311.0,2.14762441]
[1721237388790,0.0145529,64312.0,64311.0,2.17562441]
[1721237389023,0.0145529,64312.0,64311.0,2.16162441]
[1721237389455,0.0145529,64312.0,64311.0,2.17562441]
[1721237390165,0.0145529,64312.0,64311.0,2.16162441]
[1721237390579,0.0145529,64312.0,64311.0,2.17562441]
[1721237391555,0.0145529,64312.0,64311.0,2.22562428]
[1721237391791,0.0145529,64312.0,64311.0,2.09652774]
[1721237391994,0.0145529,64312.0,64311.0,2.22562428]
[1721237392762,0.0145529,64312.0,64311.0,2.17562428]
[1721237393155,0.0145529,64312.0,64311.0,2.22562428]
[1721237394745,0.0145529,64312.0,64311.0,2.2256232]
[1721237396302,0.0145529,64312.0,64311.0,2.1756232]
[1721237396499,0.0145529,64312.0,64311.0,2.5366112]
[1721237396753,0.0145529,64312.0,64311.0,2.2256232]
[1721237396981,0.0145529,64312.0,64311.0,2.17480228]
[1721237397692,0.0145529,64312.0,64311.0,2.1748027]
[1721237398945,0.0145529,64312.0,64311.0,1.6991147]
[1721237399231,0.0805529,64312.0,64311.0,1.0771387]
[1721237399430,0.0805529,64312.0,64311.0,0.9771387]
[1721237399638,0.0805529,64312.0,64311.0,1.5991147]
[1721237399842,0.0145529,64312.0,64311.0,1.5851147]
[1721237400380,0.0145529,64312.0,64311.0,1.8227147]
[1721237400792,0.0145529,64312.0,64311.0,1.4977339]
[1721237401008,0.1511529,64312.0,64311.0,0.45297882]
[1721237401224,0.1511529,64312.0,64311.0,0.18038174]
[1721237401849,0.1511529,64312.0,64311.0,0.32187574]
[1721237402056,0.1511529,64312.0,64311.0,0.94385174]
[1721237402267,0.1511529,64312.0,64311.0,0.63386374]
[1721237402482,0.1511529,64312.0,64311.0,0.62086374]
[1721237402685,0.1511529,64312.0,64311.0,0.63186374]
[1721237402884,0.1519829,64312.0,64311.0,0.64486374]
[1721237403103,0.1519829,64312.0,64311.0,0.63386374]
[1721237403938,0.1519829,64312.0,64311.0,0.32287574]
[1721237404349,0.1519829,64312.0,64311.0,0.95585174]
[1721237404562,0.1519829,64312.0,64311.0,1.26683974]
[1721237404563,0.0153829,64312.0,64311.0,1.26683974]
[1721237405983,0.0153829,64312.0,64311.0,0.95585174]
[1721237406994,0.1578829,64312.0,64311.0,0.33387574]
[1721237407141,0.1578829,64312.0,64311.0,0.17838174]
[1721237407548,0.6243569,64312.0,64311.0,0.024]
[1721237407782,0.9353399,64312.0,64311.0,0.024]
[1721237407989,1.72368959,64312.0,64311.0,0.024]
[1721237408192,1.74827031,64312.0,64311.0,0.024]
[1721237408449,1.74827031,64312.0,64311.0,0.013]
[1721237408450,1.75327286,64312.0,64311.0,0.013]
[1721237408631,0.300223,64299.0,64295.0,0.002794]
[1721237408831,0.1447,64299.0,64295.0,0.002794]
[1721237409006,0.1447,64299.0,64295.0,0.158326]
[1721237409218,0.300223,64299.0,64295.0,0.158326]
[1721237409629,0.300223,64299.0,64295.0,0.002794]
[1721237409869,0.611269,64299.0,64295.0,0.002794]
[1721237409999,0.922315,64299.0,64295.0,0.002794]
[1721237410419,0.923315,64299.0,64295.0,0.002794]
[1721237411113,1.234361,64299.0,64295.0,0.002794]
[1721237411310,1.234361,64299.0,64286.0,0.155552]
[1721237411615,1.234361,64299.0,64288.0,0.002794]
[1721237411813,1.234361,64299.0,64289.0,0.002794]
[1721237412423,0.1457,64299.0,64298.0,0.15529474]
[1721237412625,0.001,64299.0,64298.0,0.62187074]
[1721237412830,0.001,64299.0,64298.0,0.93292174]
[1721237413076,0.001,64299.0,64298.0,1.24397274]
[1721237413649,0.001,64299.0,64298.0,1.30467274]
[1721237413853,0.001,64299.0,64298.0,1.69852374]
[1721237414258,0.0203829,64312.0,64298.0,0.74597263]
[1721237414485,0.0203829,64312.0,64311.0,0.466482]
[1721237414688,0.0203829,64312.0,64311.0,1.32393974]
[1721237415519,0.0203829,64312.0,64311.0,1.24283974]
[1721237416367,0.0203829,64312.0,64311.0,1.32003974]
[1721237416767,0.0203829,64312.0,64311.0,1.33403974]
[1721237416970,0.0203829,64312.0,64311.0,1.63102774]
[1721237417175,0.0203829,64312.0,64311.0,1.65402774]
[1721237417577,0.0203829,64312.0,64311.0,1.66502774]
[1721237418640,0.0203829,64312.0,64311.0,1.95810253]
[1721237418869,0.0203829,64312.0,64311.0,2.09720389]
[1721237419286,0.0203829,64312.0,64311.0,2.11120389]
[1721237419491,0.0203829,64312.0,64311.0,2.07620389]
[1721237419842,0.0203829,64312.0,64311.0,2.09020389]
[1721237420042,0.0203829,64312.0,64311.0,1.9990291]
[1721237420245,0.0203829,64312.0,64311.0,1.9630291]
[1721237420445,0.0203829,64312.0,64311.0,1.9770291]
[1721237420648,0.0203829,64312.0,64311.0,1.9630291]
[1721237422237,0.0203829,64312.0,64311.0,2.0130291]
[1721237422557,0.0203829,64312.0,64311.0,2.3240171]
[1721237422759,0.0203829,64312.0,64311.0,2.3380171]
[1721237423275,0.0153829,64312.0,64311.0,2.3380171]
[1721237423500,0.00834,64314.0,64313.0,1.903184]
[1721237423865,0.00834,64314.0,64313.0,2.30965879]
[1721237424475,0.00834,64314.0,64313.0,2.30965393]
[1721237424683,0.00834,64316.0,64315.0,1.760329]
[1721237424881,0.00834,64320.0,64319.0,0.716425]
[1721237425104,0.00834,64320.0,64319.0,2.32014493]
[1721237425512,0.00834,64320.0,64319.0,2.78028111]
[1721237426904,0.00834,64320.0,64319.0,2.79028111]
[1721237427479,0.00834,64320.0,64319.0,2.79026845]
[1721237428373,0.00834,64344.0,64325.0,0.20546]
[1721237428374,0.07154,64344.0,64325.0,0.20546]
[1721237428562,0.00834,64344.0,64343.0,0.666251]
[1721237428772,0.00834,64344.0,64343.0,1.04423274]
[1721237428944,0.01646527,64344.0,64343.0,1.04423274]
[1721237429144,0.06410527,64354.0,64353.0,0.155392]
[1721237429421,0.06410527,64354.0,64353.0,0.93134374]
[1721237429881,0.06410527,64354.0,64353.0,1.24212874]
[1721237430088,0.025,64363.0,64362.0,0.466113]
[1721237430263,0.025,64363.0,64362.0,1.46557874]
[1721237430678,0.025,64363.0,64353.0,0.310783]
[1721237430679,0.025,64363.0,64353.0,0.2]
[1721237430888,0.025,64363.0,64350.0,0.1]
[1721237430889,0.025,64363.0,64360.0,0.155375]
[1721237431097,0.025,64363.0,64361.0,0.15438174]
[1721237431296,0.025,64363.0,64362.0,0.155371]
[1721237431525,0.025,64363.0,64361.0,0.15438174]
[1721237431736,0.025,64363.0,64353.0,0.310785]
[1721237431973,0.025,64363.0,64355.0,0.310773]
[1721237432205,0.025,64363.0,64354.0,0.15438174]
[1721237432206,0.025,64363.0,64356.0,0.15438174]
[1721237432451,0.025,64363.0,64362.0,0.466113]
[1721237432698,0.025,64363.0,64362.0,1.24197874]
[1721237432925,0.025,64363.0,64362.0,1.24297874]
[1721237433448,0.025,64363.0,64362.0,1.24197874]
[1721237433689,0.025,64363.0,64362.0,1.24497874]
[1721237434183,0.025,64363.0,64362.0,1.24197874]
[1721237434415,0.025,64363.0,64362.0,1.25097874]
[1721237435105,0.025,64363.0,64362.0,1.26097874]
[1721237435340,0.02583,64363.0,64362.0,0.95023674]
[1721237435616,0.02583,64363.0,64362.0,0.17338174]
[1721237435854,0.328798,64363.0,64362.0,0.019]
[1721237436096,0.17343,64363.0,64362.0,0.019]
[1721237436368,0.09093,64363.0,64362.0,1.26097874]
[1721237436596,0.02583,64363.0,64362.0,1.26097874]
[1721237436868,0.02583,64363.0,64362.0,0.95023674]
[1721237437381,0.02583,64363.0,64362.0,1.26097874]
[1721237437614,0.02583,64363.0,64362.0,0.95023674]
[1721237438552,0.02583,64363.0,64362.0,0.63949474]
[1721237439220,0.02583,64363.0,64362.0,1.09443674]
[1721237439460,0.02583,64363.0,64362.0,1.52817874]
[1721237439686,0.02583,64363.0,64362.0,1.83892074]
[1721237439946,0.02583,64363.0,64362.0,1.52817874]
[1721237440455,0.02583,64363.0,64362.0,1.96609553]
[1721237440915,0.02583,64363.0,64362.0,2.05653076]
[1721237441189,0.02583,64363.0,64362.0,2.00653076]
[1721237441421,0.02583,64363.0,64362.0,2.05653076]
[1721237441655,0.0001,64366.0,64365.0,1.448271]
[1721237441898,0.00834,64385.0,64375.0,0.976697]
[1721237442160,0.00834,64385.0,64375.0,1.73486096]
[1721237442399,0.00834,64385.0,64375.0,1.66535774]
[1721237443349,0.00834,64385.0,64375.0,1.68835774]
[1721237443598,0.00834,64385.0,64375.0,1.83705774]
[1721237443832,0.00834,64385.0,64375.0,1.85105774]
[1721237444071,0.00834,64385.0,64375.0,0.85799974]
[1721237444306,0.07324,64377.0,64375.0,0.32372074]
[1721237444531,0.07324,64377.0,64375.0,1.49335774]
[1721237444532,0.00834,64377.0,64375.0,1.49335774]
[1721237444996,0.00834,64377.0,64375.0,1.66535774]
[1721237445244,0.00834,64377.0,64375.0,1.67935774]
[1721237446466,0.00834,64377.0,64375.0,1.83945774]
[1721237447172,0.00834,64377.0,64375.0,1.69335774]
[1721237447676,0.00834,64377.0,64375.0,1.67935774]
[1721237448252,0.00834,64377.0,64375.0,1.66535774]
[1721237448664,0.00834,64377.0,64375.0,1.67935774]
[1721237448892,0.00834,64377.0,64375.0,1.18267874]
[1721237449107,0.08494,64377.0,64375.0,0.94507874]
[1721237449390,0.0768529,64376.0,64375.0,0.18238174]
[1721237449607,0.2321899,64376.0,64375.0,0.18238174]
[1721237450096,0.0768529,64376.0,64375.0,0.18238174]
[1721237450770,0.0768529,64376.0,64375.0,0.63439974]
[1721237451002,0.0768529,64376.0,64375.0,0.94907874]
[1721237451003,0.0145529,64376.0,64375.0,0.94907874]
[1721237451236,0.0145529,64376.0,64375.0,1.25975774]
[1721237451897,0.0145529,64376.0,64375.0,0.63839974]
[1721237452108,0.0145529,64376.0,64375.0,0.62439974]
[1721237452314,0.0145529,64376.0,64375.0,0.31272074]
[1721237452562,0.1536529,64376.0,64375.0,0.15738174]
[1721237452765,0.1536529,64376.0,64375.0,0.16438174]
[1721237452984,0.1536529,64376.0,64375.0,0.32672074]
[1721237454056,0.0747529,64376.0,64375.0,0.63739974]
[1721237454270,0.0747529,64376.0,64375.0,0.62739974]
[1721237454271,0.0145529,64376.0,64375.0,0.62739974]
[1721237454518,0.0145529,64376.0,64375.0,0.62039974]
[1721237454719,0.1698899,64376.0,64375.0,0.16538174]
[1721237455196,0.0145529,64376.0,64375.0,0.32072074]
[1721237455464,0.0145529,64376.0,64375.0,0.63139974]
[1721237455676,0.0145529,64376.0,64375.0,0.94607874]
[1721237456342,0.0145529,64376.0,64375.0,0.63539974]
[1721237456775,0.3252269,64376.0,64375.0,0.16938174]
[1721237456979,0.4805639,64376.0,64375.0,0.16938174]
[1721237457388,0.1698899,64376.0,64375.0,0.16938174]
[1721237458422,0.1698899,64376.0,64375.0,0.29837925]
[1721237459023,0.1698899,64376.0,64375.0,0.29837953]
[1721237460266,0.9328379,64376.0,64375.0,0.015]
[1721237460488,1.2435119,64376.0,64375.0,0.015]
[1721237460697,1.27077159,64376.0,64375.0,0.015]
[1721237461083,1.58144559,64376.0,64375.0,0.015]
[1721237461291,1.58144559,64376.0,64375.0,0.012]
[1721237461531,1.63144559,64376.0,64375.0,0.012]
[1721237461705,1.63344559,64376.0,64375.0,0.012]
[1721237462088,0.0626,64358.0,64355.0,0.002794]
[1721237462291,0.0626,64358.0,64356.0,0.28340778]
[1721237462497,0.0626,64358.0,64357.0,0.13182004]
[1721237462700,0.0626,64358.0,64357.0,0.28340778]
[1721237463128,0.0626,64358.0,64357.0,0.15438174]
[1721237463649,0.0626,64358.0,64357.0,0.28340968]
[1721237464084,0.0609,64366.0,64358.0,0.002794]
[1721237464311,0.0175529,64376.0,64358.0,0.002794]
[1721237464312,0.0175529,64376.0,64375.0,0.155339]
[1721237464512,0.0175529,64376.0,64375.0,0.74940761]
[1721237464721,0.0175529,64376.0,64375.0,0.28338136]
[1721237464927,0.0165529,64376.0,64375.0,0.28338136]
[1721237465352,0.0145529,64376.0,64375.0,1.06007836]
[1721237466217,0.0145529,64376.0,64375.0,1.06007387]
[1721237466486,0.0072179,64376.0,64375.0,1.06007387]
[1721237466964,0.0072179,64376.0,64375.0,1.06607387]
[1721237467193,0.0072179,64376.0,64375.0,1.72585287]
[1721237467396,0.0072179,64376.0,64375.0,1.94945287]
[1721237467603,0.0072179,64376.0,64375.0,1.94345287]
[1721237467869,0.0080479,64376.0,64375.0,1.94045287]
[1721237468336,0.0080479,64376.0,64375.0,1.93645287]
[1721237468566,0.0080479,64376.0,64375.0,2.42013187]
[1721237468769,0.0080479,64376.0,64375.0,2.42613187]
[1721237468977,0.0080479,64376.0,64375.0,2.94879509]
[1721237469215,0.0080479,64376.0,64375.0,2.94875147]
[1721237469431,0.0080479,64376.0,64375.0,2.73678659]
[1721237471090,0.0080479,64376.0,64375.0,2.65486179]
[1721237471298,0.0080479,64376.0,64375.0,2.44290159]
[1721237471515,0.0080479,64376.0,64375.0,2.38690159]
[1721237471712,0.0080479,64376.0,64375.0,2.38410759]
[1721237471913,0.0080479,64376.0,64375.0,2.37010759]
[1721237472337,0.0080479,64376.0,64375.0,2.59606525]
[1721237472562,0.0080479,64376.0,64375.0,2.37010568]
[1721237472792,0.0080479,64376.0,64375.0,2.24113674]
[1721237473001,0.0080479,64376.0,64375.0,2.38410568]
[1721237473209,0.0080479,64376.0,64375.0,2.44810568]
[1721237473625,0.0080479,64376.0,64375.0,2.43410568]
[1721237474048,0.0080479,64376.0,64375.0,2.44810568]
[1721237474474,0.0080479,64376.0,64375.0,2.77278468]
[1721237475071,0.0080479,64376.0,64375.0,2.39810568]
[1721237475279,0.0080479,64376.0,64375.0,2.37289968]
[1721237475530,0.0080479,64376.0,64375.0,2.56354874]
[1721237475764,0.0080479,64376.0,64375.0,2.38410154]
[1721237475990,0.0080479,64376.0,64375.0,2.37010154]
[1721237476415,0.0080479,64376.0,64375.0,2.38410154]
[1721237477074,0.0080479,64376.0,64375.0,2.39810154]
[1721237477485,0.0080479,64376.0,64375.0,2.42010154]
[1721237477695,0.0080479,64376.0,64375.0,2.43410154]
[1721237477919,0.0080479,64376.0,64375.0,2.39810154]
[1721237478345,0.0080479,64376.0,64375.0,2.19810154]
[1721237478551,0.0080479,64376.0,64375.0,2.19810168]
[1721237478970,0.0080479,64376.0,64375.0,1.72232268]
[1721237479441,0.0080479,64376.0,64375.0,0.31134668]
[1721237479671,0.4740589,64376.0,64375.0,0.028]
[1721237479899,1.69896264,64376.0,64375.0,0.028]
[1721237480113,1.2339069,64376.0,64375.0,0.028]
[1721237480323,1.2339069,64376.0,64375.0,0.014]
[1721237481001,1.2839069,64376.0,64375.0,0.014]
[1721237481237,1.33036613,64376.0,64375.0,0.014]
[1721237481441,1.2839069,64376.0,64375.0,0.014]
[1721237481661,1.2839069,64376.0,64357.0,0.000913]
[1721237481662,0.155374,64361.0,64357.0,0.000913]
[1721237481887,0.310705,64370.0,64357.0,0.000913]
[1721237481888,0.21198,64358.0,64357.0,0.000913]
[1721237482104,0.833502,64358.0,64357.0,0.000913]
[1721237482767,0.910802,64358.0,64357.0,0.000913]
[1721237483014,0.600041,64358.0,64357.0,0.000913]
[1721237483223,0.910802,64358.0,64357.0,0.000913]
[1721237484299,1.221563,64358.0,64357.0,0.000913]
[1721237484515,1.52594474,64358.0,64357.0,0.000913]
[1721237485144,1.5723823,64358.0,64357.0,0.000913]
[1721237485359,1.47694474,64358.0,64357.0,0.001913]
[1721237485606,1.52694474,64358.0,64357.0,0.001913]
[1721237485814,1.52694474,64358.0,64357.0,0.000913]
[1721237486022,1.52694474,64358.0,64357.0,0.001913]
[1721237486023,1.83870574,64358.0,64357.0,0.001913]
[1721237486675,1.84170574,64358.0,64357.0,0.002913]
[1721237487110,1.48094474,64358.0,64357.0,0.002913]
[1721237487555,1.52794474,64358.0,64357.0,0.001913]
[1721237487765,1.48094474,64358.0,64357.0,0.002913]
[1721237488182,1.79170574,64358.0,64357.0,0.002913]
[1721237488396,1.48094474,64358.0,64357.0,0.002913]
[1721237489703,1.84170574,64358.0,64357.0,0.002913]
[1721237489925,1.84170574,64358.0,64350.0,0.000913]
[1721237489926,1.261582,64351.0,64350.0,0.000913]
[1721237490147,0.0566,64327.0,64320.0,0.002794]
[1721237490353,0.155462,64325.0,64320.0,0.31264674]
[1721237490561,0.155443,64332.0,64328.0,0.155451]
[1721237490823,0.0566,64339.0,64321.0,0.15438174]
[1721237491034,0.155446,64331.0,64327.0,0.155455]
[1721237491240,0.155449,64330.0,64325.0,0.31092]
[1721237491463,0.155448,64330.0,64325.0,0.30983974]
[1721237491878,0.466351,64329.0,64328.0,0.001]
[1721237492117,0.31087,64336.0,64315.0,0.002794]
[1721237492323,0.14367479,64337.0,64317.0,0.155479]
[1721237492324,0.155469,64322.0,64317.0,0.155479]
[1721237492530,0.15547,64321.0,64318.0,0.002794]
[1721237492785,0.31093,64324.0,64318.0,0.002794]
[1721237492786,0.155468,64322.0,64318.0,0.002794]
[1721237492989,0.155465,64323.0,64318.0,0.155477]
[1721237493197,0.155468,64322.0,64318.0,0.155477]
[1721237493415,0.155468,64322.0,64317.0,0.155479]
[1721237493620,0.155468,64322.0,64316.0,0.15438174]
[1721237493621,0.155472,64321.0,64316.0,0.46534574]
[1721237493828,0.155468,64322.0,64318.0,0.155476]
[1721237494249,0.155463,64324.0,64320.0,0.155472]
[1721237494467,0.310892,64331.0,64322.0,0.310934]
[1721237494468,0.155449,64330.0,64322.0,0.310934]
[1721237494706,0.155436,64335.0,64330.0,0.310896]
[1721237494910,0.0773,64337.0,64328.0,0.310903]
[1721237494911,0.31087,64336.0,64328.0,0.310903]
[1721237495119,0.31087,64336.0,64309.0,0.360994]
[1721237495120,0.0773,64337.0,64319.0,0.0611]
[1721237495333,0.0773,64337.0,64322.0,0.155467]
[1721237495334,0.155458,64326.0,64322.0,0.155467]
[1721237495535,0.31091,64328.0,64320.0,0.46532574]
[1721237495536,0.155455,64328.0,64324.0,0.002794]
[1721237495750,0.162449,64330.0,64326.0,0.155456]
[1721237496161,0.155451,64329.0,64325.0,0.15546]
[1721237497486,0.155455,64327.0,64323.0,0.15438174]
[1721237497726,0.155453,64328.0,64324.0,0.155462]
[1721237497942,0.002,64329.0,64325.0,0.155458]
[1721237498155,0.157449,64330.0,64305.0,0.15]
[1721237498156,0.002,64330.0,64305.0,0.1]
[1721237498371,0.0626,64338.0,64315.0,0.15717574]
[1721237498372,0.0607,64324.0,64315.0,0.15717574]
[1721237498628,0.466404,64322.0,64317.0,0.155478]
[1721237498832,0.155469,64322.0,64318.0,0.002794]
[1721237499034,0.155469,64322.0,64317.0,0.155478]
[1721237499236,0.155469,64322.0,64316.0,0.310962]
[1721237499440,0.155469,64322.0,64318.0,0.155477]
[1721237499651,0.15547,64321.0,64316.0,0.30986074]
[1721237499859,0.15547,64321.0,64317.0,0.008913]
[1721237500068,0.15547,64321.0,64317.0,0.164392]
[1721237500284,0.001,64322.0,64319.0,0.155473]
[1721237500460,0.001,64322.0,64318.0,0.313746]
[1721237500461,0.002,64322.0,64321.0,0.15547]
[1721237500660,0.002,64322.0,64321.0,0.30985174]
[1721237500868,0.002,64322.0,64321.0,0.93173174]
[1721237501072,0.002,64322.0,64321.0,1.30407174]
[1721237501480,0.003,64322.0,64321.0,1.38137174]
[1721237501723,0.002,64322.0,64321.0,1.38137174]
[1721237501949,0.08397387,64336.0,64321.0,0.29308174]
[1721237502156,0.08397387,64336.0,64331.0,0.155443]
[1721237502157,0.155436,64335.0,64331.0,0.155443]
[1721237502357,0.155439,64334.0,64330.0,0.155448]
[1721237502995,0.08397387,64336.0,64331.0,0.15438174]
[1721237503203,0.08397387,64336.0,64335.0,0.466308]
[1721237503408,0.15542,64342.0,64337.0,0.31086]
[1721237503619,0.0634,64347.0,64339.0,0.31085]
[1721237503822,0.155412,64345.0,64338.0,0.15438174]
[1721237504036,0.08397387,64350.0,64338.0,0.15438174]
[1721237504248,0.360708,64369.0,64338.0,0.15438174]
[1721237504249,0.218982,64358.0,64355.0,0.155387]
[1721237504461,0.218982,64358.0,64340.0,0.2786]
[1721237504462,0.0636,64358.0,64340.0,0.2786]
[1721237504664,0.218981,64358.0,64354.0,0.155389]
[1721237504840,0.218981,64358.0,64341.0,0.15717574]
[1721237504841,0.155381,64358.0,64353.0,0.15539]
[1721237505294,0.310758,64359.0,64341.0,0.15438174]
[1721237505500,0.310753,64360.0,64351.0,0.310793]
[1721237505709,0.155385,64357.0,64352.0,0.158188]
[1721237505914,0.310753,64360.0,64352.0,0.310789]
[1721237506094,0.310753,64360.0,64354.0,0.155388]
[1721237506326,0.155381,64358.0,64354.0,0.155388]
[1721237506970,0.310753,64360.0,64352.0,0.310789]
[1721237507189,0.003,64357.0,64353.0,0.002794]
[1721237507602,0.0637,64365.0,64358.0,0.155379]
[1721237507603,0.155369,64363.0,64358.0,0.155379]
[1721237507803,0.155371,64362.0,64358.0,0.155379]
[1721237508005,0.003,64358.0,64356.0,0.466155]
[1721237508218,0.003,64358.0,64354.0,0.31076974]
[1721237508853,0.003,64358.0,64355.0,0.002794]
[1721237509052,0.15838,64358.0,64355.0,0.15438174]
[1721237509478,0.006,64360.0,64355.0,0.15438174]
[1721237509690,0.15537,64363.0,64358.0,0.155379]
[1721237509894,0.374431,64365.0,64355.0,0.15438174]
[1721237509895,0.155374,64361.0,64355.0,0.46515374]
[1721237510094,0.155374,64361.0,64357.0,0.155383]
[1721237511040,0.001,64358.0,64357.0,0.155383]
[1721237511842,0.001,64358.0,64357.0,0.93129674]
[1721237512251,0.001,64358.0,64357.0,1.68185025]
[1721237512453,0.001,64358.0,64357.0,1.82775025]
[1721237512656,0.08397387,64373.0,64372.0,0.466041]
[1721237512873,0.0080479,64376.0,64373.0,0.155342]
[1721237513070,0.0080479,64376.0,64372.0,0.155346]
[1721237513275,0.0080479,64376.0,64366.0,0.31072]
[1721237513507,0.1633849,64376.0,64372.0,0.155345]
[1721237513704,0.008,64373.0,64372.0,0.156345]
[1721237513905,0.008,64373.0,64372.0,0.467039]
[1721237514353,0.0080479,64376.0,64374.0,0.155342]
[1721237514550,0.1713849,64376.0,64372.0,0.155346]
[1721237514994,0.1713849,64376.0,64372.0,0.156346]
[1721237514995,0.006,64373.0,64372.0,0.156346]
[1721237515383,0.1713849,64376.0,64372.0,0.155346]
[1721237515617,0.1773849,64376.0,64374.0,0.001]
[1721237515741,0.1773849,64376.0,64372.0,0.155346]
[1721237515941,0.1693849,64376.0,64372.0,0.155346]
[1721237516162,0.014,64373.0,64372.0,0.157346]
[1721237516337,0.014,64373.0,64372.0,0.76412174]
[1721237516538,0.014,64373.0,64372.0,1.07381574]
[1721237516736,0.014,64373.0,64372.0,1.38450974]
[1721237516737,0.006,64373.0,64372.0,1.38450974]
[1721237516951,0.006,64373.0,64372.0,1.38550974]
[1721237517378,0.006,64373.0,64372.0,1.38450974]
[1721237517787,0.01,64373.0,64372.0,1.69520374]
[1721237518035,0.004,64373.0,64372.0,1.69420374]
[1721237518242,0.009,64373.0,64372.0,1.69520374]
[1721237518456,0.009,64373.0,64372.0,2.02889774]
[1721237518655,0.009,64373.0,64372.0,2.12789774]
[1721237518656,0.004,64373.0,64372.0,2.12789774]
[1721237518885,0.004,64373.0,64372.0,1.95717918]
[1721237519220,0.0080479,64376.0,64372.0,1.95717918]
[1721237519221,0.0080479,64376.0,64375.0,1.659355]
[1721237519415,0.0080479,64376.0,64375.0,2.32471574]
[1721237519819,0.0080479,64376.0,64375.0,2.37471574]
[1721237520052,0.00834,64377.0,64376.0,1.536633]
[1721237520314,0.46304871,64412.0,64410.0,0.465765]
[1721237520568,0.066,64411.0,64400.0,0.387855]
[1721237520776,0.15526,64409.0,64402.0,0.310545]
[1721237520984,0.376506,64411.0,64402.0,0.155273]
[1721237521157,0.155263,64407.0,64402.0,0.155273]
[1721237521415,0.066,64411.0,64392.0,0.310596]
[1721237521623,0.07717479,64410.0,64396.0,0.310574]
[1721237521841,0.066,64411.0,64400.0,0.311556]
[1721237521842,0.155263,64407.0,64400.0,0.311556]
[1721237522072,0.381506,64411.0,64404.0,0.155269]
[1721237522280,0.071,64411.0,64401.0,0.30965774]
[1721237522480,0.155268,64405.0,64401.0,0.30965774]
[1721237522886,0.155268,64405.0,64401.0,0.15438174]
[1721237523104,0.066,64411.0,64401.0,0.15438174]
[1721237523313,0.00834,64419.0,64385.0,0.07717479]
[1721237523314,0.003,64407.0,64392.0,0.2786]
[1721237523521,0.003,64407.0,64386.0,0.07717479]
[1721237523522,0.003,64407.0,64398.0,0.155284]
[1721237523697,0.003,64407.0,64398.0,0.30966574]
[1721237523698,0.155272,64403.0,64398.0,0.30966574]
[1721237523902,0.155272,64403.0,64399.0,0.155281]
[1721237524658,0.310543,64404.0,64398.0,0.15438174]
[1721237524840,0.155275,64402.0,64398.0,0.15438174]
[1721237525050,0.155275,64402.0,64399.0,0.002]
[1721237525755,0.155271,64404.0,64399.0,0.002]
[1721237525954,0.465797,64406.0,64401.0,0.155277]
[1721237526436,0.003,64402.0,64401.0,0.155277]
[1721237526653,0.003,64402.0,64401.0,0.93076674]
[1721237526878,0.003,64402.0,64401.0,1.01006674]
[1721237527092,0.003,64402.0,64401.0,0.69951274]
[1721237527531,0.003,64402.0,64401.0,1.01006674]
[1721237527740,0.255251,64412.0,64406.0,0.155262]
[1721237527741,0.155254,64411.0,64406.0,0.155262]
[1721237527946,0.1,64412.0,64401.0,0.54423574]
[1721237528183,0.15526,64408.0,64403.0,0.15527]
[1721237528414,0.15526,64408.0,64404.0,0.30964974]
[1721237528658,0.155257,64410.0,64406.0,0.155264]
[1721237528869,0.3105,64413.0,64407.0,0.218362]
[1721237529079,0.1,64412.0,64406.0,0.155264]
[1721237529297,0.155256,64410.0,64406.0,0.155264]
[1721237529528,0.105,64412.0,64404.0,0.15438174]
[1721237529741,0.005,64412.0,64411.0,0.465757]
[1721237529987,0.005,64412.0,64411.0,0.62013874]
[1721237530198,0.012,64412.0,64411.0,0.62013874]
[1721237530632,0.005,64412.0,64411.0,0.62013874]
[1721237530836,0.012,64412.0,64411.0,0.62013874]
[1721237531251,0.012,64412.0,64411.0,0.68133874]
[1721237531252,0.007,64412.0,64411.0,0.68133874]
[1721237531459,0.00834,64415.0,64413.0,0.155246]
[1721237531870,0.00834,64415.0,64413.0,0.155247]
[1721237532304,0.00834,64415.0,64414.0,0.155245]
[1721237532945,0.00834,64415.0,64411.0,0.15438174]
[1721237533161,0.155249,64413.0,64411.0,0.15438174]
[1721237533396,0.0643,64410.0,64393.0,0.0635]
[1721237533607,0.07717479,64408.0,64394.0,0.15438174]
[1721237533817,0.155285,64398.0,64394.0,0.15438174]
[1721237534021,0.07717479,64408.0,64394.0,0.15438174]
[1721237534239,0.31053,64406.0,64394.0,0.30967474]
[1721237534485,0.07717479,64408.0,64392.0,0.0751]
[1721237534695,0.155292,64395.0,64392.0,0.15438174]
[1721237534970,0.465874,64395.0,64394.0,0.002]
[1721237535191,0.839757,64395.0,64394.0,0.002]
[1721237535814,0.839757,64395.0,64394.0,0.001]
[1721237536517,0.839757,64395.0,64394.0,0.002]
[1721237536920,0.839757,64395.0,64394.0,0.001]
[1721237537138,1.23194,64395.0,64394.0,0.001]
[1721237537589,1.542523,64395.0,64394.0,0.001]
[1721237537797,1.53632174,64395.0,64394.0,0.001]
[1721237538008,1.84690474,64395.0,64394.0,0.001]
[1721237538221,1.152991,64386.0,64385.0,0.000913]
[1721237538863,1.463617,64386.0,64385.0,0.000913]
[1721237540344,0.776565,64386.0,64385.0,0.000913]
[1721237540989,0.782565,64386.0,64385.0,0.001913]
[1721237541472,0.782565,64386.0,64385.0,0.000913]
[1721237541718,0.781565,64386.0,64385.0,0.001913]
[1721237541915,0.471939,64386.0,64385.0,0.001913]
[1721237542151,0.476939,64386.0,64385.0,0.002913]
[1721237542356,0.787565,64386.0,64385.0,0.002913]
[1721237542601,1.54087274,64386.0,64385.0,0.001913]
[1721237542806,1.49587274,64386.0,64385.0,0.002913]
[1721237542987,1.80049874,64386.0,64385.0,0.001913]
[1721237543427,1.80649874,64386.0,64385.0,0.002913]
[1721237543880,1.80049874,64386.0,64385.0,0.001913]
[1721237544080,1.79549874,64386.0,64385.0,0.000913]
[1721237544290,1.80649874,64386.0,64385.0,0.002913]
[1721237544710,1.80049874,64386.0,64385.0,0.001913]